Cogmind - Beta 12 @@@ ROGUE MODE // 2023.03.11 @ 10:11:10 Player: RBrandon Result: Destroyed by as-41761 with Assembled Blade Performance ------------- Evolutions (0) 0 Regions Visited (2) 400 Robots Destroyed (14) 70 Value Destroyed (412) 412 Prototype IDs (0) 0 Alien Tech Used (0) 0 Bonus (-116) -116 TOTAL SCORE: 766 Bonus ------- Friendly Fire -116 Cogmind --------- Core Integrity 0/250 Matter 300/300 Energy 249/250 System Corruption 0% Temperature Warm (177) Movement Walking (120) Location -10/Mines Parts ------- > --- POWER (1) -------- Ion Engine > --- PROPULSION (2) --- Aluminum Leg Aluminum Leg > --- UTILITY (2) ------ Improved Heat Sink Small Storage Unit > --- WEAPON (2) ------- Particle Gun > --- INVENTORY (8) ---- Aluminum Leg Aluminum Leg Aluminum Leg Improved Terrain Scanner Seismic Detector Weapon Shielding Datajack Mining Laser Peak State ------------ > --- POWER ------------ Ion Engine > --- PROPULSION ------- Aluminum Leg Aluminum Leg > --- UTILITY ---------- Improved Heat Sink Small Storage Unit > --- WEAPON ----------- Small Laser Particle Gun > --- INVENTORY -------- Aluminum Leg Aluminum Leg Small Storage Unit Improved Terrain Scanner Seismic Detector Weapon Shielding Datajack Mining Laser [Rating: 11] Favorites ----------- Power Ion Engine Engine Ion Engine Propulsion Aluminum Leg Leg Aluminum Leg Utility Small Storage Unit Device Seismic Detector Storage Small Storage Unit Weapon Assault Rifle Energy Gun Small Laser Ballistic Gun Assault Rifle Build | -11 -10 -10 ------- Run | Jun Mat Min Slots Evolved . | . . . Power . | . . . Propulsion . | . . . Utility . | . . . Weapon . | . . . Parts Attached 16 | 8 1 7 Power 2 | 1 . 1 Engine 2 | 1 . 1 Core . | . . . Reactor . | . . . Propulsion 4 | 2 . 2 Treads . | . . . Leg 4 | 2 . 2 Wheel . | . . . Hover . | . . . Flight . | . . . Utility 4 | 3 . 1 Device 3 | 2 . 1 Storage 1 | 1 . . Processor . | . . . Hackware . | . . . Protection . | . . . Artifact . | . . . Weapon 6 | 2 1 3 Energy Gun 4 | 1 1 2 Energy Cannon . | . . . Ballistic Gun 2 | 1 . 1 Ballistic Cannon . | . . . Launcher . | . . . Special Weapon . | . . . Impact Weapon . | . . . Slashing Weapon . | . . . Piercing Weapon . | . . . Special Melee Weapon . | . . . Unidentified Prototypes . | . . . Parts Lost 8 | . 1 7 Power 1 | . . 1 Propulsion 2 | . . 2 Utility . | . . . Weapon 5 | . 1 4 Highest Loss Streak 4 | . 1 4 To Critical Strikes . | . . . Average Slot Usage (%) 98 | . 98 97 Engine 14 | . 14 14 Leg 27 | . 28 26 Device 14 | . 14 14 Storage 14 | . 14 14 Energy Gun 14 | . 12 16 Ballistic Gun 11 | . 14 10 Naked Turns . | . . . Heaviest Build 15 | 15 15 15 Greatest Support 20 | 20 20 20 Greatest Overweight (x) 1 | 1 . 1 Average Overweight (x) . | . . . Largest Inventory Capacity 8 | 8 8 8 Average Capacity 7 | 7 8 8 Most Carried 8 | 4 7 8 Average Carried 5 | 2 5 7 Final Capacity 8 | 8 8 8 Final Carried 8 | 4 7 8 Class Distribution -------------------- 64% | Mutant 35% | Scavenger-Mutant Dominant Class ---------------- Mutant | -10/Materials Scavenger-Mutant | -10/Mines Resources | -11 -10 -10 ----------- Run | Jun Mat Min Matter Collected 465 | 270 51 144 Remotely . | . . . Salvage Created 706 | 142 182 382 Parts 36 | 8 10 18 Haulers Intercepted . | . . . Recyclers Shooed 1 | 1 . . Parts Field Recycled . | . . . Retrieved Matter . | . . . Parts Self-Destructed . | . . . Prevented . | . . . Kills | -11 -10 -10 ------- Run | Jun Mat Min Combat Hostiles Destroyed 15 | . 4 11 Guns 15 | . 4 11 Classes Destroyed 4 | 2 1 1 Tunneler 2 | 2 . . Recycler 1 | 1 . . Grunt 10 | . 4 6 Assembled 5 | . . 5 Thug 1 | . . 1 Best Kill Streak 5 | 2 2 5 Combat Bots Only 5 | . 2 5 Max Kills in Single Turn 2 | 1 1 2 Gunslinging 1 | . . 1 Exploded . | . . . Melee . | . . . Uniques/NPCs Destroyed . | . . . Combat | -11 -10 -10 -------- Run | Jun Mat Min Damage Taken 1112 | . 176 936 Core 262 | . . 262 Absorbed by Shields . | . . . Core Remaining (%) 100 | 100 . . Volleys Fired 73 | 18 12 43 Largest 2 | 1 2 2 Hottest 105 | 40 60 105 Shots Fired 115 | 18 22 75 Gun 115 | 18 22 75 Cannon . | . . . Launcher . | . . . Special . | . . . Kinetic 48 | . 12 36 Thermal 44 | . 5 39 Explosive . | . . . Electromagnetic 23 | 18 5 . Robot Hit Streak 9 | 6 7 9 Robot Miss Streak 4 | 2 3 4 Penetration Max . | . . . Secondary Targets 1 | . . 1 Max Gunslinging Chain 1 | . . 1 Shots Hit Robots 75 | 12 16 47 Core Hits 37 | 4 9 24 Critical Kills 1 | . . 1 Critical Parts Destroyed . | . . . Critical Strikes 3 | . . 3 Burn 2 | . . 2 Destroy 1 | . . 1 Melee Attacks . | . . . Impact . | . . . Slashing . | . . . Piercing . | . . . Sneak Attacks . | . . . Combat Hostiles . | . . . Follow-up Attacks . | . . . Damage Inflicted 999 | 172 222 605 Guns 998 | 172 222 604 Cannons . | . . . Explosions . | . . . Melee . | . . . Ramming 1 | . . 1 Kinetic 436 | . 130 306 Thermal 320 | . 22 298 Explosive . | . . . Electromagnetic 242 | 172 70 . Impact . | . . . Slashing . | . . . Piercing . | . . . Highest Corruption . | . . . Average Corruption . | . . . Corruption Purged . | . . . Corruption Blocked . | . . . Overload Shots . | . . . Overflow Damage . | . . . Projectiles . | . . . Explosions . | . . . Melee . | . . . Knockbacks . | . . . Impact . | . . . Kinetic . | . . . Secondary . | . . . Self-Inflicted Damage . | . . . Shots . | . . . Rammed . | . . . Targets Rammed 1 | . . 1 Kicked 1 | . . 1 Crushed . | . . . Highest Temperature 187 | . 72 187 Average Temperature 64 | . 26 78 Received Heat Transfer 586 | . 93 493 Siege Activations . | . . . Robots Corrupted . | . . . Combat Hostiles . | . . . Parts Fried . | . . . Impact Corruptions . | . . . Robots Melted . | . . . Combat Hostiles . | . . . Parts Melted . | . . . Heat Transferred 882 | . 50 832 Parts Sabotaged . | . . . Parts Stolen . | . . . Parts Stripped . | . . . Power Chain Reactions . | . . . Missiles Intercepted . | . . . Alert | -11 -10 -10 ------- Run | Jun Mat Min Peak Influence 175 | 15 144 175 Initial 55 | . 9 55 Average 91 | 5 68 141 Maximum Alert Level . | . . . Low Security (%) 100 | 100 100 100 Level 1 . | . . . Level 2 . | . . . Level 3 . | . . . Level 4 . | . . . Level 5 . | . . . High Security . | . . . Max Security . | . . . Squads Dispatched 2 | . 2 . Investigation . | . . . Extermination . | . . . Reinforcement 2 | . 2 . Assault . | . . . Garrison . | . . . Intercept . | . . . Searches Triggered . | . . . Construction Impeded . | . . . Haulers Reinforced . | . . . Active Scanning Responses . | . . . Cargo Convoy Interrupts . | . . . Stealth | -11 -10 -10 --------- Run | Jun Mat Min Distress Signals 2 | . 2 . Communications Jammed . | . . . Distress Signals . | . . . Times Spotted 20 | . 7 13 Peak Tracking Total 5 | . 3 5 Tactical Retreats 1 | . . 1 Traps | -11 -10 -10 ------- Run | Jun Mat Min Traps Triggered . | . . . Indirectly . | . . . Trap Hack Attempts . | . . . Triggered . | . . . Disarmed . | . . . Reprogrammed . | . . . Reused . | . . . Traps Extracted . | . . . Installed . | . . . Triggered . | . . . Machines | -11 -10 -10 ---------- Run | Jun Mat Min Machines Disabled . | . . . Max in Single Turn . | . . . Machines Repaired . | . . . Machines Sabotaged . | . . . Overloaded Fab Kills . | . . . Hacking | -11 -10 -10 --------- Run | Jun Mat Min Machines Accessed 1 | . 1 . Terminals . | . . . Fabricators . | . . . Repair Stations . | . . . Recycling Units 1 | . 1 . Scanalyzers . | . . . Garrison Access . | . . . Total Hacks 4 | . 4 . Successful 1 | . 1 . Failed 3 | . 3 . Catastrophic . | . . . Database Lockouts . | . . . Manual . | . . . Terminals . | . . . Fabricators . | . . . Repair Stations . | . . . Recycling Units 4 | . 4 . Scanalyzers . | . . . Garrison Access . | . . . Terminal Hacks . | . . . Fabricator Hacks . | . . . Repair Station Hacks . | . . . Recycling Unit Hacks 1 | . 1 . Report Inventory 1 | . 1 . Scanalyzer . | . . . Garrison Access Hacks . | . . . Unauthorized Hacks . | . . . Terminals . | . . . Fabricators . | . . . Repair Stations . | . . . Recycling Units . | . . . Scanalyzers . | . . . Garrison Access . | . . . Data Cores Recovered . | . . . Used . | . . . Hacking Detections 1 | . 1 . Full Trace Events 1 | . 1 . Feedback Events . | . . . Feedback Blocked . | . . . Robot Schematics Acquired . | . . . Robots Built . | . . . Authchips . | . . . Time . | . . . Total Robot Build Rating . | . . . Part Schematics Acquired . | . . . Parts Built . | . . . Authchips . | . . . Time . | . . . Total Part Build Rating . | . . . Parts Repaired . | . . . Time . | . . . Parts Recycled . | . . . Recycled Matter . | . . . Retrieved Matter . | . . . Retrieved Components . | . . . Parts Scanalyzed . | . . . Part Schematics Acquired . | . . . Parts Damaged . | . . . Bothacking | -11 -10 -10 ------------ Run | Jun Mat Min Used RIF Installer . | . . . Robots Hacked . | . . . Non-combat . | . . . Combat . | . . . Robot Hacks Applied . | . . . Relay Couplers Released . | . . . Fabnet Peak Effective % . | . . . Robots Rewired . | . . . Allies Hacked . | . . . Hacks Repelled . | . . . Allies | -11 -10 -10 -------- Run | Jun Mat Min Total Allies . | . . . Largest Group . | . . . Highest-Rated Group . | . . . Highest-Rated Ally . | . . . Total Orders . | . . . Ally Attacks . | . . . Total Damage . | . . . Kills . | . . . Allies Corrupted . | . . . Allies Melted . | . . . Intel | -11 -10 -10 ------- Run | Jun Mat Min Robot Analysis Total . | . . . Derelict Logs Recovered 1 | . . 1 Drone Launches . | . . . Drone Recoveries . | . . . Exploration | -11 -10 -10 ------------- Run | Jun Mat Min Turns Passed 767 | 145 258 364 Spaces Moved 396 | 71 166 159 Core 11 | 11 . . Treads . | . . . Legs 385 | 60 166 159 Wheels . | . . . Hover . | . . . Flight . | . . . Fastest Speed 50 | 50 120 120 Average Speed 119 | 110 120 122 Slowest Speed 190 | 120 120 190 Overloaded Moves . | . . . Propulsion Burnouts . | . . . Robots Hopped . | . . . Cave-ins Triggered . | . . . Exploration Rate (%) 25 | 5 31 39 Regions Visited 2 Branch Regions 1 Pre-discovered Areas . | . . . Known Exits Taken . | . . . Unknown Exits Taken 2 | 1 1 . Scrap Searched . | . . . Spaces Dug . | . . . Terrain Destroyed . | . . . Melee . | . . . Projectile . | . . . AOE . | . . . Terrain Rammed . | . . . Walls Destroyed . | . . . Machines Disabled . | . . . Actions | -11 -10 -10 --------- Run | Jun Mat Min Total 572 | 116 202 254 Wait 73 | 16 21 36 Move 394 | 70 165 159 Hop . | . . . Pick Up 12 | 3 3 6 Fast Attach 11 | 8 1 2 Attach 5 | . . 5 Detach 2 | 1 . 1 Swap . | . . . Drop 1 | . . 1 Fire 73 | 18 12 43 Melee . | . . . Ram . | . . . Kick 1 | . . 1 Crush . | . . . Escape Stasis . | . . . Rewire . | . . . Trap . | . . . Miscellaneous . | . . . Route ------- -11/Junkyard -10/Materials (discovered 2 exits: [*Mat] / [*Min]) -10/Mines History --------- Turn | Location | Event 38 | -11/Junkyard | Discovered new exit (range 16) 146 | -11/Junkyard | Entered Materials 186 | -10/Materials | Discovered new exit (range 8) 227 | -10/Materials | Discovered new exit (range 15) 322 | -10/Materials | Build established: Mutant 404 | -10/Materials | Entered Mines 541 | -10/Mines | Lost 4 parts (1p2n1w) 603 | -10/Mines | Learned Materials emergency access door positions 719 | -10/Mines | Assembled infested the area 743 | -10/Mines | Core integrity fell below 50% 766 | -10/Mines | Core integrity fell below 20% 768 | -10/Mines | Destroyed by as-41761 with Assembled Blade Last Messages --------------- Data stored: Materials emergency access points. 00605_ Kicked T-07 Excavator. 00626_ Assault Rifle destroyed. 00633_ G-47 Trooper destroyed. 00638_ Acquired Imp. Heat Sink. 00642_ Acquired 40 matter. 00643_ Dropped Sml. Storage Unit. 00645_ Acquired Aluminum Leg. 00719_ ALERT: Infestation in the mines, dispatching Demolisher response squad. 00727_ T-07 Excavator is excavating. 00742_ as-78062 destroyed. 00745_ as-82196 destroyed. 00745_ Switching to secondary target: as-85368. 00745_ as-85368 destroyed. 00751_ as-49428 destroyed. 00754_ as-16422 suffers critical hit (Burn). 00757_ as-16422 destroyed. 00760_ Sml. Laser destroyed. 00767_ as-41761 suffers critical hit (Burn). Map ----- +----------------------------------------------------+ | ?# ##?## #????????????????????????? | | ?# ### #????????????????????????? | | ?# #????????????????????????? | | ?## ##????????????????????????? | | ??## #?????????????????????????? | | ???### #?????????????????????????? | | ?????## ##??? ???????????????????? | | ??????# ##??? ???????????????????? | | ??????## #?? #??????????????????? | | ???????## ##?? ??????????????????? | | ????????## ##?? ?????????????????? | | ????????## ### ????????????????? | | ??????### ????????????????? | | ?????## #????????????????? | | ????## ##????????????????? | | ????# ##?????????????????? | | ????# #####??????????????????? | | ????# ##??????????????????????? | | ????## ##??????????????????????? | | ?????### ##??##?????????????????? | | ???????#### ### ##????????????????? | | ??????????## #????????????????? | | ???????????# """ #????????????????? | | ???????????# """ #????????????????? | | ???????????## """ ##???????????????? | | ????????###### @a % #???????????????? | | ???????# % #??????????????? | | ???????## %% #??????????????? | | ????????# #### #### ##??????????????? | | ????????###???####???? ###???????????????? | | ???????????????????????#?????????????????? | | ?????????????????????????????????????????? | | ?????????????????????????????????????????? | | ?????????????????????????????????????????? | | ?????????????????????????????????????????? | | ?????????????????????????????????????????? | | ?????????????????????????????????????????? | | ?????????????????????????????????????????? | | ?????????????????????????????????????????? | | ?????????????????????????????????????????? | | ?????????????????????????????????????????? | | ?????????????????????????????????????????? | | ?????????????????????????????????????????? | | ?????????????????????????????????????????? | | ?????????????????????????????????????????? | | ?????????????????????????????????????????? | | ?????????????????????????????????????????? | | ?????????????????????????????????????????? | | ?????????????????????????????????????????? | | ?????????????????????????????????????????? | +----------------------------------------------------+ Best States ------------- Heat Dissipation 39 Energy Generation 10 Energy Capacity 250 Matter Stores 300 Matter Capacity 300 Sight Range 16 Terrain Scan Range 16 Terrain Scan Density 10 Evasion (%) 55 Item Schematics ----------------- None Robot Schematics ------------------ None Fabricated ------------ Nothing Alien Tech Used ----------------- None Achievements -------------- None Challenges ------------ None Game ------ Seed AnalysisWeightSpecial Manual? 0 Play Time 00:11:15 Cumulative 92.3 hours Start 2023.03.11 @ 10:03:16 End 2023.03.11 @ 10:11:10 Sessions 1 Manual Loads 0 Difficulty Rogue Special Mode None Game No. 73 Rogue 73 Adventurer 0 Explorer 0 Win Type - Total 1 Types 1/0/0/0/0/0/0/0/0 Lore% 49 Gallery% 63 Achievement% 51 Wizard Run 0 Options --------- ASCII 0 Keyboard 1 Movement Vi Keybinds 0 Fullscreen 2 Font 18/SmallcapsGlow Map View 76x50 Tactical HUD 1 Map Filters NONE Filters NONE Steam 1 RUN: a3fe1232-c097-409b-b08e-80bcb6000d86